bitfinex-derivatives/quotes_SOLF0:USTF0_20250924
["timestamp","ask_amount","ask_price","bid_price","bid_amount"]
[1758726174822,2.11047554,216.1,215.99,2.84185609]
[1758726174823,7.69,216.08,215.99,7.91138055]
[1758726175029,9.62710356,216.07,215.99,7.91138055]
[1758726175331,3.35342802,216.06,215.99,7.18]
[1758726176021,2.11047554,216.04,215.94,9.29047554]
[1758726176219,3.35342802,216.03,215.94,9.29047554]
[1758726176420,3.35342802,216.03,215.94,7.18]
[1758726176628,7.69,216.02,215.94,7.18]
[1758726176830,3.35342802,216.01,215.94,7.18]
[1758726179324,3.35342802,216.01,215.94,11.3456]
[1758726180027,3.35342802,216.01,215.94,7.18]
[1758726180716,2.11047554,215.99,215.87,7.38]
[1758726180922,2.11047554,215.96,215.87,7.38]
[1758726181129,10.76169166,215.95,215.87,7.38]
[1758726181325,3.35169166,215.94,215.87,7.38]
[1758726181517,7.41,215.95,215.87,7.38]
[1758726181723,2.11047554,215.93,215.87,7.38]
[1758726184327,2.11047554,215.93,215.83,13.65807554]
[1758726184630,7.41,215.92,215.83,7.38]
[1758726185736,7.41,215.92,215.83,11.5478]
[1758726186124,7.41,215.92,215.83,7.38]
[1758726186623,2.11047554,215.9,215.77,0.51987339]
[1758726186823,2.11047554,215.87,215.78,7.38]
[1758726187027,4.1673,215.86,215.78,7.38]
[1758726187223,2.11047554,215.84,215.75,179.51288657]
[1758726187830,2.11047554,215.84,215.74,7.38]
[1758726188825,7.41,215.85,215.75,4.1693]
[1758726189029,2.11047554,215.83,215.75,4.1693]
[1758726189932,2.11047554,215.83,215.74,7.38]
[1758726190733,11.5774,215.85,215.74,7.38]
[1758726190927,2.11047554,215.82,215.74,7.38]
[1758726193133,4.1682,215.81,215.74,7.38]
[1758726193532,2.11047554,215.79,215.74,7.38]
[1758726193730,7.41,215.78,215.7,11.5501]
[1758726193931,7.41,215.78,215.7,7.38]
[1758726194434,64.8333,215.83,215.58,73.2529]
[1758726194435,2.11047554,215.76,215.66,4.1709]
[1758726194632,7.41,215.75,215.64,20.99870199]
[1758726194831,7.41,215.75,215.64,7.38]
[1758726195435,3.30987665,215.74,215.64,7.38]
[1758726195637,10.71987665,215.75,215.64,7.38]
[1758726197939,4.1695,215.74,215.64,7.38]
[1758726198736,10.71987665,215.75,215.64,7.38]
[1758726199138,7.41,215.71,215.6,7.38]
[1758726199543,7.48037665,215.69,215.6,7.38]
[1758726200136,3.30987665,215.69,215.6,7.38]
[1758726201638,3.30987665,215.69,215.61,4.172]
[1758726202931,7.41,215.78,215.62,64.8955]
[1758726203248,6.66206217,215.77,215.64,7.38]
[1758726203536,11.5793,215.75,215.64,11.5513]
[1758726203741,7.41,215.75,215.64,7.38]
[1758726204440,7.41,215.75,215.67,4.1709]
[1758726204639,7.41,215.75,215.64,7.38]
[1758726204837,14.88917665,215.75,215.64,11.5514]
[1758726205040,14.88917665,215.75,215.61,3.30987665]
[1758726205041,7.84,215.8,215.66,64.8835]
[1758726205245,7.84,215.8,215.68,7.31]
[1758726205541,3.35026105,215.79,215.68,7.31]
[1758726205837,3.35026105,215.78,215.68,7.31]
[1758726206146,7.84,215.77,215.68,7.31]
[1758726207446,7.84,215.82,215.7,7.31]
[1758726207647,7.84,215.8,215.7,7.31]
[1758726207944,7.84,215.77,215.7,7.31]
[1758726208137,11.14987665,215.77,215.7,7.31]
[1758726208638,7.84,215.77,215.7,7.31]
[1758726209041,7.84,215.81,215.7,7.31]
[1758726209240,3.35410185,215.8,215.7,7.31]
[1758726209443,7.84,215.81,215.74,7.31]
[1758726210037,3.35418007,215.8,215.74,7.31]
[1758726210243,7.84,215.81,215.74,7.31]
[1758726210443,3.35626067,215.8,215.74,7.31]
[1758726210646,7.84,215.81,215.74,7.31]
[1758726210846,125.64,215.86,215.74,7.31]
[1758726211144,3.35569746,215.85,215.74,7.31]
[1758726211446,3.35569746,215.84,215.74,7.31]
[1758726211648,3.35569746,215.83,215.74,7.31]
[1758726211849,11.19569746,215.82,215.74,7.31]
[1758726212050,3.35569746,215.81,215.74,7.31]
[1758726212242,3.30987665,215.75,215.64,7.31]
[1758726212440,3.35569746,215.81,215.32,638.58773567]
[1758726212441,7.84,215.64,215.45,7.31]
[1758726212642,7.84,215.51,215.41,0.60267712]
[1758726212846,7.84,215.51,215.35,7.31]
[1758726213151,351.4,215.63,215.35,7.31]
[1758726213152,340.78987665,215.63,215.45,75.56607665]
[1758726213346,7.84,215.61,215.49,7.31]
[1758726213549,337.48,215.63,215.53,7.31]
[1758726213758,3.35974025,215.62,215.53,7.31]
[1758726214050,3.36014349,215.61,215.53,7.31]
[1758726214244,337.48,215.63,215.53,7.31]
[1758726214439,3.35934292,215.62,215.53,7.31]
[1758726214643,337.48,215.63,215.53,7.31]
[1758726214843,3.35929136,215.62,215.53,7.31]
[1758726215039,7.84,215.66,215.55,64.9158]
[1758726215249,7.84,215.66,215.56,7.31]
[1758726215446,3.35822803,215.65,215.56,7.31]
[1758726215646,3.35822803,215.64,215.56,7.31]
[1758726215847,7.84,215.66,215.56,7.31]
[1758726216044,3.35875635,215.65,215.52,4.1736]
[1758726216247,3.35875635,215.64,215.52,4.1736]
[1758726216544,3.35875635,215.63,215.52,4.1736]
[1758726216742,3.35875635,215.62,215.52,4.1736]
[1758726216950,3.35875635,215.61,215.52,4.1736]
[1758726217254,3.36102193,215.6,215.52,4.1736]
[1758726217442,7.84,215.64,215.52,4.1736]
[1758726217651,3.36102254,215.63,215.52,4.1736]
[1758726217949,3.36102254,215.62,215.52,4.1736]
[1758726218152,3.36102254,215.61,215.52,4.1736]
[1758726218353,3.36102254,215.6,215.52,4.1736]
[1758726218543,3.36102254,215.59,215.52,4.1736]
[1758726218747,3.36102254,215.58,215.52,4.1736]
[1758726218951,7.84,215.64,215.52,4.1736]
[1758726219151,3.36060495,215.63,215.52,4.1736]
[1758726219348,3.36060495,215.62,215.52,4.1736]
[1758726219552,3.36060495,215.61,215.52,4.1736]
[1758726219854,3.36060495,215.6,215.52,4.1736]
[1758726220053,3.36060495,215.59,215.52,4.1736]
[1758726220247,3.36060495,215.58,215.52,4.1736]
[1758726220444,3.36060495,215.57,215.52,11.4836]
[1758726220647,7.84,215.64,215.52,11.4836]
[1758726220844,3.36521394,215.63,215.52,11.4836]
[1758726221050,3.36521394,215.62,215.52,11.4836]
[1758726221251,3.36521394,215.61,215.52,7.31]
[1758726221552,11.20521394,215.6,215.47,7.31]
[1758726221753,3.36521394,215.59,215.47,7.31]
[1758726221954,7.84,215.57,215.47,7.31]
[1758726222254,7.84,215.57,215.39,64.9627]
[1758726222255,3.36521394,215.56,215.42,64.9558]
[1758726222448,7.84,215.57,215.42,64.9558]
[1758726222449,3.36521394,215.55,215.42,64.9558]
[1758726222655,3.36521394,215.54,215.42,64.9558]
[1758726222855,3.36521394,215.53,215.44,4.1752]
[1758726223055,3.36521394,215.52,215.44,4.1752]
[1758726223252,3.36521394,215.51,215.44,4.1752]
[1758726223451,3.36521394,215.5,215.44,4.1752]
[1758726223653,3.36521394,215.49,215.41,7.31]
[1758726223848,7.84,215.53,215.41,7.31]
[1758726223849,3.36521394,215.48,215.41,7.31]
[1758726224053,3.36521394,215.47,215.41,7.31]
[1758726224253,44.18,215.53,215.41,7.31]
[1758726224254,3.36521394,215.46,215.41,7.31]
[1758726224455,48.3537,215.53,215.41,7.31]
[1758726224656,3.37069692,215.52,215.41,7.31]
[1758726224859,3.37069692,215.51,215.41,7.31]
[1758726225156,3.37069692,215.5,215.36,4.1767]
[1758726225351,11.21069692,215.49,215.32,443.63283567]
[1758726225559,3.37069692,215.48,215.37,7.31]
[1758726225759,3.37069692,215.47,215.4,4.1761]
[1758726225948,3.37069692,215.46,215.4,4.1761]
[1758726226154,3.37069692,215.45,215.41,7.31]
[1758726226355,7.84,215.49,215.41,7.31]
[1758726226557,3.36821308,215.48,215.42,4.1757]
[1758726226856,3.36821308,215.47,215.42,4.1757]
[1758726227063,3.36821308,215.46,215.42,4.1757]
[1758726227262,3.36821308,215.45,215.42,4.1757]
[1758726227463,7.84,215.49,215.42,4.1757]
[1758726227670,3.36791624,215.48,215.42,4.1757]
[1758726227869,3.36791624,215.47,215.42,4.1757]
[1758726228175,7.84,215.45,215.35,7.31]
[1758726228367,3.36791624,215.44,215.35,7.31]
[1758726230367,7.84,215.52,215.43,7.31]
[1758726230670,13.06194791,215.62,215.47,72.2509]
[1758726231268,13.06194791,215.62,215.5,4.1741]
[1758726231269,17.23384791,215.62,215.5,4.1741]
[1758726231471,5.22194791,215.64,215.55,7.31]
[1758726231669,7.84,215.67,215.57,64.9109]
[1758726232470,7.84,215.67,215.62,4.1718]
[1758726232674,337.8,215.71,215.61,7.31]
[1758726232871,7.83292186,215.75,215.6,64.901]
[1758726232872,5.22194791,215.75,215.63,7.31]
[1758726233073,5.22194791,215.77,215.63,7.31]
[1758726233679,5.22194791,215.76,215.63,7.31]
[1758726233878,5.22194791,215.76,215.63,11.4815]
[1758726234076,5.22194791,215.75,215.63,7.31]
[1758726234474,11.6296,215.74,215.63,7.31]
[1758726235579,7.46,215.74,215.63,7.31]
[1758726236181,5.22194791,215.76,215.63,7.31]
[1758726236779,4.1694,215.75,215.63,7.31]
[1758726237974,4.1698,215.73,215.63,7.31]
[1758726238381,188.41094791,215.78,215.63,7.31]
[1758726238683,64.8584,215.75,215.63,7.31]
[1758726239071,72.3242,215.73,215.63,7.31]
[1758726239969,4.1702,215.71,215.63,7.31]
[1758726241279,12.70194791,215.78,215.63,7.31]
[1758726241477,7.48,215.78,215.63,7.31]
[1758726241672,4.169,215.77,215.66,4.171]
[1758726241877,4.169,215.77,215.67,7.83]
[1758726242079,7.48,215.78,215.67,7.83]
[1758726242381,3.36105694,215.77,215.67,7.83]
[1758726242574,3.36105694,215.76,215.67,7.83]
[1758726242774,3.36105694,215.75,215.67,7.83]
[1758726242978,3.36105694,215.74,215.67,7.83]
[1758726243281,3.36105694,215.73,215.67,7.83]
[1758726243475,4.1691,215.77,215.67,7.83]
[1758726243676,3.36105837,215.76,215.67,7.83]
[1758726243882,3.36105837,215.75,215.67,7.83]
[1758726244182,3.36105837,215.74,215.67,7.83]
[1758726244477,7.48,215.78,215.67,7.83]
[1758726244478,3.36105837,215.73,215.67,7.83]
[1758726244682,64.8548,215.76,215.62,7.83]
[1758726244683,3.36105837,215.72,215.62,7.83]
[1758726244982,3.36105837,215.71,215.62,7.83]
[1758726245283,3.36105837,215.7,215.62,7.83]
[1758726245675,7.48,215.74,215.62,7.83]
[1758726245981,3.36152606,215.73,215.62,7.83]
[1758726246175,3.36152606,215.72,215.62,7.83]
[1758726246376,3.36152606,215.71,215.62,7.83]
[1758726246573,7.48,215.74,215.62,7.83]
[1758726246772,7.48,215.72,215.56,7.83]
[1758726246979,7.48,215.68,215.56,7.83]
[1758726247184,3.36128935,215.67,215.56,7.83]
[1758726247386,4.1715,215.64,215.56,7.83]
[1758726247679,7.48,215.64,215.51,7.83]
[1758726247880,4.1726,215.58,215.51,7.83]
[1758726248082,68.25803098,215.63,215.51,7.83]
[1758726248083,64.9027,215.6,215.51,7.83]
[1758726248382,4.173,215.57,215.47,0.7203235]
[1758726248586,3.36313142,215.56,215.47,0.7203235]
[1758726248783,3.36313142,215.55,215.47,0.7203235]
[1758726248982,7.48,215.58,215.47,0.7203235]
[1758726248983,3.36313142,215.54,215.47,0.7203235]
[1758726249184,7.48,215.58,215.47,0.7203235]
[1758726249385,3.36424027,215.57,215.47,0.7203235]
[1758726249583,3.36424027,215.56,215.47,0.7203235]
[1758726249881,3.36424027,215.55,215.47,0.7203235]
[1758726250090,7.53774027,215.54,215.47,0.7203235]
[1758726250279,7.48,215.58,215.47,0.7203235]
[1758726250480,3.36423152,215.57,215.47,0.7203235]
[1758726250683,3.36423152,215.56,215.47,4.8950235]
[1758726250877,3.36423152,215.55,215.47,4.8950235]
[1758726251082,3.36423152,215.54,215.47,4.8950235]
[1758726251284,4.1728,215.57,215.47,4.1747]
[1758726251588,3.36423583,215.56,215.47,4.1747]
[1758726251786,7.53753583,215.55,215.46,7.83]
[1758726251986,10.84423583,215.54,215.46,7.83]
[1758726252180,3.36423583,215.53,215.46,7.83]
[1758726252582,7.48,215.54,215.46,7.83]
[1758726252985,7.48,215.54,215.47,4.1747]
[1758726253193,7.48,215.59,215.48,64.938]
[1758726253491,7.48,215.59,215.49,7.83]
[1758726254491,3.36611974,215.58,215.49,7.83]
[1758726254690,4.1721,215.61,215.49,7.83]
[1758726254891,3.36591534,215.6,215.49,7.83]
[1758726255087,93.74,215.63,215.49,7.83]
[1758726255088,3.36591534,215.59,215.49,7.83]
[1758726255287,93.74,215.63,215.49,7.83]
[1758726255486,3.36749033,215.62,215.49,7.83]
[1758726255688,3.36749033,215.61,215.49,7.83]
[1758726255888,7.53969033,215.6,215.51,4.1739]
[1758726256089,3.36749033,215.59,215.49,7.83]
[1758726256284,3.36749033,215.58,215.49,7.83]
[1758726256595,64.8966,215.62,215.49,7.83]
[1758726256596,3.36749033,215.57,215.49,7.83]
[1758726256789,3.36749033,215.56,215.49,7.83]
[1758726256985,7.48,215.59,215.49,7.83]
[1758726257186,7.5433179,215.58,215.49,7.83]
[1758726257392,3.3707179,215.57,215.49,7.83]
[1758726258492,3.3707179,215.57,215.42,7.83]
[1758726258795,10.8507179,215.56,215.42,7.83]
[1758726258992,3.3707179,215.55,215.42,7.83]
[1758726259189,4.1738,215.53,215.42,12.0057]
[1758726259391,3.3707179,215.52,215.42,12.0057]
[1758726259592,3.3707179,215.52,215.42,7.83]
[1758726259795,4.1732,215.55,215.44,4.1753]
[1758726259996,3.37323153,215.54,215.44,4.1753]
[1758726260294,3.37323153,215.53,215.44,4.1753]
[1758726260594,3.37323153,215.53,215.42,7.83]
[1758726260595,3.37323153,215.52,215.42,7.83]
[1758726260791,3.37323153,215.51,215.42,7.83]
[1758726260992,4.1736,215.53,215.42,7.83]
[1758726261191,3.37311742,215.52,215.42,7.83]
[1758726261390,3.37311742,215.51,215.42,7.83]
[1758726261591,3.37362417,215.5,215.42,7.83]
[1758726261796,3.37362417,215.49,215.42,7.83]
[1758726262002,7.48,215.52,215.42,7.83]
[1758726262190,4.1742,215.5,215.42,7.83]
[1758726262389,3.37362665,215.49,215.42,7.83]
[1758726262591,4.1742,215.5,215.42,7.83]
[1758726262787,3.37306914,215.49,215.42,7.83]
[1758726262988,4.1742,215.5,215.42,7.83]
[1758726263191,7.48,215.52,215.41,173.51992392]
[1758726263192,11.6546,215.48,215.41,173.51992392]
[1758726263404,3.37307107,215.47,215.41,173.51992392]
[1758726263603,3.37307107,215.46,215.41,173.51992392]
[1758726263901,4.1746,215.48,215.41,173.51992392]
[1758726264200,3.37275035,215.47,215.41,173.51992392]
[1758726264398,7.88,215.49,215.41,173.51992392]
[1758726264605,3.37193336,215.48,215.41,173.51992392]
[1758726264901,7.88,215.49,215.41,173.51992392]
[1758726265094,7.88,215.49,215.42,4.1756]
[1758726265295,3.37100319,215.48,215.42,4.1756]
[1758726265491,7.88,215.49,215.42,4.1756]
[1758726265698,3.37100319,215.48,215.4,12.0461]
[1758726266006,3.37127241,215.47,215.4,12.0461]
[1758726266200,7.88,215.49,215.4,12.0461]
[1758726266398,3.37077393,215.48,215.4,12.0461]
[1758726266597,7.88,215.49,215.4,12.0461]
[1758726266598,3.3706473,215.47,215.4,12.0461]
[1758726266903,7.88,215.49,215.4,12.0461]
[1758726267205,3.37072547,215.48,215.4,12.0461]
[1758726267396,7.88,215.49,215.4,12.0461]
[1758726267598,3.37032656,215.48,215.4,12.0461]
[1758726267797,7.88,215.49,215.4,12.0461]
[1758726268003,4.1747,215.47,215.4,12.0461]
[1758726268200,3.37001533,215.46,215.37,4.1766]
[1758726268403,3.37001533,215.46,215.35,7.87]
[1758726268404,7.88,215.46,215.35,7.87]
[1758726268718,7.88,215.44,215.33,4.1774]
[1758726269005,3.36993485,215.43,215.31,7.87]
[1758726269200,4.1763,215.39,215.31,7.87]
[1758726269596,7.88,215.42,215.26,65.0037]
[1758726269597,12.0566,215.38,215.28,4.1784]
[1758726269799,7.88,215.38,215.28,4.1784]
[1758726270107,3.37050386,215.37,215.29,4.178]
[1758726270406,7.88,215.38,215.29,4.178]
[1758726270606,12.0566,215.38,215.29,4.178]
[1758726270802,7.88,215.38,215.29,4.178]
[1758726271108,7.88,215.38,215.27,65.0008]
[1758726271305,7.88,215.38,215.26,7.87]
[1758726271505,7.88,215.38,215.29,4.178]
[1758726272003,7.88,215.38,215.26,7.87]
[1758726272004,4.1769,215.37,215.27,4.1786]
[1758726272312,7.88,215.38,215.27,4.1786]
[1758726272601,3.36546679,215.37,215.27,4.1786]
[1758726272798,7.88,215.38,215.27,4.1786]
[1758726273003,4.1771,215.35,215.27,4.1786]
[1758726273200,4.1771,215.35,215.26,7.87]
[1758726274305,4.1767,215.37,215.27,4.1784]
[1758726274508,7.88,215.38,215.26,7.87]
[1758726274805,3.36198611,215.37,215.26,12.0487]
[1758726275008,7.88,215.38,215.26,7.87]
[1758726275206,3.36214152,215.37,215.26,7.87]
[1758726275404,66.54,215.38,215.3,4.178]
[1758726275608,3.36048997,215.37,215.26,7.87]
[1758726275908,66.54,215.38,215.26,7.87]
[1758726276109,3.36048997,215.37,215.26,7.87]
[1758726276312,66.54,215.38,215.26,7.87]
[1758726276505,3.35845539,215.37,215.26,7.87]
[1758726276712,64.9712,215.37,215.26,7.87]
[1758726276913,7.88,215.35,215.22,7.87]
[1758726277112,12.0577,215.32,215.22,7.87]
[1758726277305,7.88,215.32,215.22,7.87]
[1758726277506,5.22306444,215.36,215.23,65.0134]
[1758726277707,46.35697481,215.35,215.27,4.1785]
[1758726277911,43.0,215.35,215.22,7.87]
[1758726278510,3.35841138,215.34,215.22,7.87]
[1758726278704,43.0,215.35,215.22,7.87]
[1758726278902,7.5345809,215.34,215.22,7.87]
[1758726279107,43.0,215.35,215.22,7.87]
[1758726279309,7.88,215.36,215.26,7.87]
[1758726279514,7.88,215.36,215.29,4.178]
[1758726279907,7.88,215.36,215.26,7.87]
[1758726280209,7.88,215.36,215.27,4.1784]
[1758726280410,7.88,215.36,215.26,7.87]
[1758726280411,4.1761,215.4,215.26,7.87]
[1758726280707,3.35533297,215.39,215.3,64.9921]
[1758726280903,7.88,215.42,215.31,7.87]
[1758726281108,3.35506216,215.41,215.32,64.9855]
[1758726281310,5.14724717,215.48,215.34,64.9796]
[1758726281311,62.24,215.46,215.34,64.9796]
[1758726281510,3.35516886,215.45,215.33,7.87]
[1758726281710,3.35516886,215.44,215.35,4.1769]
[1758726281909,3.35516886,215.43,215.35,4.1769]
[1758726282109,7.88,215.44,215.33,7.87]
[1758726282309,337.86,215.53,215.37,72.8401]
[1758726282310,7.88,215.49,215.37,72.8401]
[1758726282611,7.88,215.49,215.36,64.974]
[1758726282612,7.88,215.49,215.4,7.87]
[1758726282809,7.88,215.49,215.41,4.1759]
[1758726283113,7.88,215.49,215.4,7.87]
[1758726283313,7.88,215.49,215.45,4.1751]
[1758726283613,3.35652838,215.48,215.4,7.87]
[1758726283802,7.88,215.49,215.4,7.87]
[1758726284111,3.35658348,215.48,215.35,7.87]
[1758726284314,3.35658348,215.47,215.35,7.87]
[1758726284510,11.23658348,215.46,215.35,7.87]
[1758726284702,3.35658348,215.45,215.35,7.87]
[1758726284908,118.95658348,215.45,215.35,7.87]
[1758726285212,3.35658348,215.44,215.35,7.87]
[1758726285609,7.53188348,215.44,215.35,7.87]
[1758726285805,7.53188348,215.44,215.26,93.00306444]
[1758726285806,7.88,215.42,215.29,64.9949]
[1758726286115,115.6,215.45,215.31,7.87]
[1758726286412,3.35943756,215.44,215.31,7.87]
[1758726286606,3.35943756,215.43,215.31,7.87]
[1758726286811,77.04,215.46,215.33,7.87]
[1758726287013,3.36149057,215.45,215.33,7.87]
[1758726287214,3.36149057,215.44,215.33,7.87]
[1758726287416,7.88,215.42,215.33,7.87]
[1758726287707,3.36149057,215.41,215.33,7.87]
[1758726287922,4.1761,215.4,215.33,7.87]
[1758726288110,3.36149057,215.39,215.33,7.87]
[1758726289211,12.0557,215.42,215.25,65.007]
[1758726289212,3.36149057,215.38,215.25,7.87]
[1758726289416,7.88,215.42,215.25,72.8766]
[1758726289417,3.36149057,215.37,215.25,72.8766]
[1758726289713,3.36149057,215.36,215.3,4.178]
[1758726289917,7.88,215.42,215.29,7.87]
[1758726290105,7.88,215.4,215.29,7.87]
[1758726290310,3.37089014,215.39,215.29,7.87]
[1758726291116,11.25089014,215.38,215.25,4.1788]
[1758726291414,3.37089014,215.37,215.24,7.87]
[1758726292315,3.37089014,215.36,215.24,7.87]
[1758726292512,3.37089014,215.35,215.24,7.87]
[1758726292714,3.37089014,215.34,215.24,7.87]
[1758726292910,3.37089014,215.33,215.24,7.87]
[1758726293115,3.37089014,215.32,215.24,12.0491]
[1758726293419,3.37089014,215.31,215.24,7.87]
[1758726293619,3.37089014,215.3,215.24,7.87]
[1758726294119,3.37089014,215.29,215.2,7.91]
[1758726294316,3.37089014,215.28,215.2,7.91]
[1758726294618,7.4,215.32,215.2,7.91]
[1758726294813,3.37930303,215.31,215.2,7.91]
[1758726295013,3.37930303,215.3,215.22,4.1794]
[1758726295213,3.37930303,215.29,215.22,4.1794]
[1758726295409,3.37930303,215.28,215.22,7.91]
[1758726295717,7.4,215.32,215.22,7.91]
[1758726295910,3.37917474,215.31,215.22,7.91]
[1758726296107,3.37917474,215.3,215.22,7.91]
[1758726296315,3.37917474,215.29,215.25,7.91]
[1758726296612,7.4,215.32,215.2,7.91]
[1758726296613,3.37917474,215.28,215.2,7.91]
[1758726296813,3.37917474,215.27,215.22,4.1794]
[1758726297111,11.5778,215.32,215.22,4.1794]
[1758726297311,3.37957457,215.31,215.2,7.91]
[1758726297507,4.1782,215.29,215.2,12.09]
[1758726297713,3.37957457,215.28,215.2,7.91]
[1758726298916,3.37957457,215.28,215.22,4.1794]
[1758726299115,3.37957457,215.28,215.2,7.91]
[1758726299515,3.37957457,215.28,215.23,4.1792]
[1758726299808,3.37957457,215.28,215.2,7.91]
[1758726299809,7.4,215.26,215.15,7.91]
[1758726300017,3.37957457,215.25,215.2,4.1799]
[1758726300216,3.37957457,215.24,215.15,72.9466]
[1758726300417,3.37957457,215.24,215.17,65.0309]
[1758726300617,5.14724717,215.3,215.22,7.6]
[1758726300817,3.38280155,215.29,215.22,7.6]
[1758726301016,5.14724717,215.33,215.22,7.6]
[1758726301217,5.14724717,215.33,215.23,65.0123]
[1758726301421,5.14724717,215.34,215.24,7.6]
[1758726302619,5.14724717,215.34,215.25,4.179]
[1758726302819,5.14724717,215.34,215.25,65.0073]
[1758726303015,5.14724717,215.36,215.27,7.6]
[1758726303426,5.14724717,215.37,215.27,7.6]
[1758726303614,5.14724717,215.37,215.29,4.1782]
[1758726303817,5.14724717,215.37,215.27,7.6]
[1758726304222,5.14724717,215.37,215.26,65.0041]
[1758726304223,5.14724717,215.41,215.35,7.6]
[1758726304520,356.76341198,215.43,215.35,7.6]
[1758726304715,338.08,215.43,215.39,4.1761]
[1758726304921,5.14724717,215.47,215.39,64.9642]
[1758726305226,5.22306444,215.45,215.32,7.6]
[1758726305421,5.14724717,215.47,215.33,64.9831]
[1758726305422,7.79,215.43,215.33,64.9831]
[1758726305627,121.97724717,215.48,215.37,64.9711]
[1758726305819,5.22306444,215.51,215.39,7.6]
[1758726306928,132.35724717,215.52,215.42,4.1755]
[1758726307225,7.79,215.52,215.42,7.6]
[1758726307429,7.79,215.51,215.36,7.6]
[1758726307634,4.1742,215.5,215.38,4.1764]
[1758726308031,4.1757,215.42,215.3,7.6]
[1758726308228,7.79,215.42,215.3,7.6]
[1758726308832,7.79,215.42,215.31,4.1778]
[1758726309427,4.176,215.41,215.3,7.6]
[1758726309625,7.79,215.42,215.3,7.6]
[1758726309932,12.93724717,215.42,215.3,7.6]
[1758726310230,7.79,215.42,215.3,7.6]
[1758726310429,7.79,215.42,215.31,4.1778]
[1758726311026,7.79,215.42,215.33,4.1774]
[1758726312034,11.9658,215.42,215.33,4.1774]
[1758726312235,11.9658,215.42,215.3,11.7779]
[1758726312828,3.32520912,215.41,215.3,7.6]
[1758726313028,3.32520912,215.4,215.3,7.6]
[1758726313229,3.32520912,215.39,215.3,7.6]
[1758726313438,3.32520912,215.38,215.3,7.6]
[1758726313634,3.32520912,215.37,215.3,7.6]
[1758726313936,3.32520912,215.36,215.3,7.6]
[1758726314236,7.79,215.42,215.3,7.6]
[1758726314437,3.32631985,215.41,215.31,64.989]
[1758726314631,3.32631985,215.4,215.35,4.177]
[1758726314836,3.32631985,215.39,215.36,7.6]
[1758726315140,3.32585252,215.38,215.36,7.6]
[1758726315331,7.79,215.42,215.36,7.6]
[1758726315531,3.32571453,215.41,215.35,4.177]
[1758726315840,3.32571453,215.4,215.36,7.6]
[1758726316026,3.32571453,215.39,215.36,7.6]
[1758726316227,7.79,215.44,215.35,4.177]
[1758726316434,3.32555366,215.43,215.35,4.177]
[1758726316639,3.32555366,215.42,215.35,4.177]
[1758726316838,3.32555366,215.41,215.37,4.1766]
[1758726317138,119.6,215.47,215.39,7.6]
[1758726317334,3.32460485,215.46,215.39,11.7762]
[1758726317541,3.32460485,215.45,215.39,7.6]
[1758726317741,3.32460485,215.44,215.38,72.5675]
[1758726317940,7.79,215.48,215.38,72.5675]
[1758726318142,3.32402844,215.47,215.38,72.5675]
[1758726318338,3.32402844,215.46,215.38,72.5675]
[1758726318534,3.32402844,215.45,215.38,72.5675]
[1758726318731,3.32402844,215.44,215.4,7.6]
[1758726318936,3.32386258,215.43,215.36,7.6]